fUST/lending_fUST_20251004
["ID","MTS","AMOUNT","RATE_DAILY","PERIOD"]
[388974932,1759552258727,-500.0,0.00024931,9]
[388974933,1759552258737,-500.0,0.00024931,9]
[388974934,1759552258746,-500.0,0.00024931,9]
[388974935,1759552258758,-500.0,0.00024931,9]
[388974936,1759552258767,-505.27,0.00024931,9]
[388974937,1759552258776,-1254.95,0.00024931,9]
[388974938,1759552258786,-500.0,0.00024931,9]
[388974939,1759552258795,-500.0,0.00024931,9]
[388974940,1759552258804,-500.0,0.00024931,9]
[388974941,1759552258813,-1333.55,0.00024931,9]
[388974942,1759552258823,-500.0,0.00024931,9]
[388974943,1759552258832,-2922.08,0.00024931,9]
[388974944,1759552258841,-500.0,0.00024931,9]
[388974945,1759552258850,-956.2,0.00024931,9]
[388974946,1759552258860,-500.0,0.00024931,9]
[388974947,1759552258869,-164.94558936,0.00024931,9]
[388974948,1759552258878,-500.0,0.00024931,9]
[388974949,1759552258887,-275.335864,0.00024931,9]
[388974950,1759552258897,-500.0,0.00024931,9]
[388974951,1759552258907,-1625.39,0.00024931,9]
[388974952,1759552258916,-578.2,0.00024931,9]
[388974953,1759552258926,-500.0,0.00024931,9]
[388974954,1759552258935,-500.0,0.00024931,9]
[388974955,1759552258945,-500.0,0.00024931,9]
[388974956,1759552258955,-737.65,0.00024931,9]
[388974957,1759552258964,-500.0,0.00024931,9]
[388974958,1759552258974,-616.71,0.00024931,9]
[388974959,1759552258983,-500.0,0.00024931,9]
[388974960,1759552258992,-500.0,0.00024931,9]
[388974961,1759552259001,-600.0,0.00024931,9]
[388974962,1759552259010,-500.0,0.00024931,9]
[388974963,1759552259019,-572.83,0.00024931,9]
[388974964,1759552259028,-500.0,0.00024931,9]
[388974965,1759552259038,-500.0,0.00024931,9]
[388974966,1759552259047,-151.0,0.00024931,7]
[388974967,1759552259057,-151.0,0.00024931,7]
[388974968,1759552259066,-500.0,0.00024931,9]
[388974969,1759552259075,-2322.13,0.00024931,9]
[388974970,1759552259085,-500.0,0.00024931,9]
[388974971,1759552259095,-500.0,0.00024931,9]
[388974972,1759552259105,-151.0,0.00024931,7]
[388974973,1759552259114,-762.0,0.00024931,9]
[388974974,1759552259124,-151.0,0.00024931,7]
[388974975,1759552259133,-373.60910581,0.00024931,9]
[388974976,1759552259143,-500.0,0.00024931,9]
[388974977,1759552259152,-151.0,0.00024931,7]
[388974978,1759552259161,-151.0,0.00024931,7]
[388974979,1759552259170,-151.0,0.00024931,7]
[388974980,1759552259178,-151.0,0.00024931,7]
[388974981,1759552259187,-500.0,0.00024931,9]
[388974982,1759552259197,-500.0,0.00024931,9]
[388974983,1759552259206,-151.0,0.00024931,7]
[388974984,1759552259216,-151.0,0.00024931,7]
[388974985,1759552259225,-176.791143,0.00024931,7]
[388974986,1759552259234,-151.0,0.00024931,7]
[388974987,1759552259244,-151.0,0.00024931,7]
[388974988,1759552259254,-1382.13,0.00024931,9]
[388974989,1759552259263,-1483.33,0.00024931,9]
[388974990,1759552259272,-5464.98,0.00024931,9]
[388974991,1759552259281,-1628.92,0.00024931,9]
[388974992,1759552259290,-3976.04,0.00024931,9]
[388974993,1759552259299,-500.0,0.00024931,9]
[388974994,1759552259308,-500.0,0.00024931,9]
[388974995,1759552259317,-500.0,0.00024931,9]
[388974996,1759552259326,-500.0,0.00024931,9]
[388974997,1759552259335,-651.17,0.00024931,9]
[388974998,1759552259344,-793.14,0.00024931,9]
[388974999,1759552259353,-500.0,0.00024931,9]
[388975000,1759552259363,-2034.82,0.00024931,9]
[388975001,1759552259371,-2767.1,0.00024931,9]
[388975002,1759552259380,-1656.1,0.00024931,9]
[388975003,1759552259390,-1069.0,0.00024931,9]
[388975004,1759552259399,-500.0,0.00024931,9]
[388975005,1759552259408,-500.0,0.00024931,9]
[388975006,1759552259417,-682.82,0.00024931,9]
[388975007,1759552259427,-1397.27,0.00024931,9]
[388975008,1759552259437,-1083.4,0.00024931,9]
[388975009,1759552259446,-542.48,0.00024931,9]
[388975010,1759552259455,-500.0,0.00024931,9]
[388975011,1759552259465,-500.0,0.00024931,9]
[388975012,1759552259475,-685.9,0.00024931,9]
[388975013,1759552259484,-500.0,0.00024931,9]
[388975014,1759552259493,-757.23,0.00024931,9]
[388975015,1759552259503,-500.0,0.00024931,9]
[388975016,1759552259512,-500.0,0.00024931,9]
[388975017,1759552259522,-500.0,0.00024931,9]
[388975018,1759552259532,-500.0,0.00024931,9]
[388975019,1759552259543,-3223.31,0.00024931,9]
[388975020,1759552259552,-2378.52,0.00024931,9]
[388975021,1759552259562,-500.0,0.00024931,9]
[388975022,1759552259572,-1996.29,0.00024931,9]
[388975023,1759552259581,-500.0,0.00024931,9]
[388975024,1759552259590,-500.0,0.00024931,9]
[388975025,1759552259601,-500.0,0.00024931,9]
[388975026,1759552259611,-422.41,0.00024931,9]
[388975027,1759552259620,-942.13,0.00024931,9]
[388975028,1759552259629,-1714.22,0.00024931,9]
[388975029,1759552259638,-609.17,0.00024931,9]
[388975030,1759552259648,-500.0,0.00024931,9]
[388975031,1759552259657,-6107.45,0.00024931,9]
[388975032,1759552259667,-511.92,0.00024931,9]
[388975033,1759552259676,-713.29,0.00024931,9]
[388975034,1759552259686,-4732.54,0.00024931,9]
[388975035,1759552259695,-5420.65,0.00024931,9]
[388975036,1759552259705,-1744.22,0.00024931,9]
[388975037,1759552259715,-500.0,0.00024931,9]
[388975038,1759552259725,-501.87418188,0.00024931,9]
[388975039,1759552259735,-151.0,0.00024931,7]
[388975040,1759552259744,-1257.87,0.00024931,9]
[388975041,1759552259754,-191.336958,0.00024931,7]
[388975042,1759552259763,-500.0,0.00024931,9]
[388975043,1759552259773,-502.15,0.00024931,9]
[388975044,1759552259782,-500.0,0.00024931,9]
[388975045,1759552259791,-500.0,0.00024931,9]
[388975046,1759552259801,-1118.86,0.00024931,9]
[388975047,1759552259811,-1790.35,0.00024931,9]
[388975048,1759552259821,-342.14757,0.00024931,7]
[388975049,1759552259830,-384.98250051,0.00024931,9]
[388975050,1759552259839,-342.14757,0.00024931,7]
[388975051,1759552259849,-500.0,0.00024931,9]
[388975052,1759552259858,-1102.6,0.00024931,9]
[388975053,1759552259868,-898.11,0.00024931,9]
[388975054,1759552259877,-342.14757,0.00024931,7]
[388975055,1759552259887,-500.0,0.00024931,9]
[388975056,1759552259896,-342.147562,0.00024931,7]
[388975057,1759552259905,-1701.01,0.00024931,9]
[388975058,1759552259915,-500.0,0.00024931,9]
[388975059,1759552259924,-1174.69,0.00024931,9]
[388975060,1759552259934,-500.0,0.00024931,9]
[388975061,1759552259943,-231.67763548,0.00024931,9]
[388975062,1759552259953,-502.77251332,0.00024931,9]
[388975063,1759552259963,-500.0,0.00024931,9]
[388975064,1759552259972,-500.0,0.00024931,9]
[388975065,1759552259982,-500.0,0.00024931,9]
[388975066,1759552259991,-500.0,0.00024931,9]
[388975067,1759552260000,-500.0,0.00024931,9]
[388975068,1759552260010,-500.0,0.00024931,9]
[388975069,1759552260019,-500.0,0.00024931,9]
[388975070,1759552260030,-500.0,0.00024931,9]
[388975071,1759552260039,-500.0,0.00024931,9]
[388975072,1759552260050,-1929.49,0.00024931,9]
[388975073,1759552260060,-1817.64,0.00024931,9]
[388975074,1759552260069,-481.7641048,0.00024931,9]
[388975075,1759552260081,-1525.75,0.00024931,9]
[388975076,1759552260092,-899.63,0.00024931,9]
[388975077,1759552260102,-500.0,0.00024931,9]
[388975078,1759552260111,-1433.89,0.00024931,9]
[388975079,1759552260120,-500.0,0.00024931,9]
[388975080,1759552260131,-500.0,0.00024931,9]
[388975081,1759552260140,-418.52187975,0.00024931,9]
[388975082,1759552260149,-525.43,0.00024931,9]
[388975083,1759552260159,-668.78,0.00024931,9]
[388975084,1759552260168,-2258.21,0.00024931,9]
[388975085,1759552260178,-500.0,0.00024931,9]
[388975086,1759552260187,-3947.36,0.00024931,9]
[388975087,1759552260197,-500.0,0.00024931,9]
[388975088,1759552260208,-500.0,0.00024931,7]
[388975089,1759552260218,-424.60972208,0.00024931,9]
[388975090,1759552260228,-2516.54,0.00024931,9]
[388975091,1759552260238,-500.0,0.00024931,9]
[388975092,1759552260248,-500.0,0.00024931,9]
[388975093,1759552260258,-500.0,0.00024931,9]
[388975094,1759552260268,-5436.53,0.00024931,9]
[388975095,1759552260278,-500.0,0.00024931,9]
[388975096,1759552260290,-500.0,0.00024931,9]
[388975097,1759552260300,-500.0,0.00024931,9]
[388975098,1759552260310,-500.0,0.00024931,9]
[388975099,1759552260322,-1223.53,0.00024931,9]
[388975100,1759552260332,-844.14,0.00024931,9]
[388975101,1759552260342,-1000.0,0.00024931,9]
[388975102,1759552260353,-500.0,0.00024931,9]
[388975103,1759552260362,-8006.92,0.00024931,9]
[388975104,1759552260371,-1265.55,0.00024931,9]
[388975105,1759552260380,-500.0,0.00024931,9]
[388975106,1759552260389,-500.0,0.00024931,9]
[388975107,1759552260398,-500.0,0.00024931,9]
[388975108,1759552260407,-500.0,0.00024932,9]
[388975109,1759552260416,-151.42574894,0.00024932,9]
[388975110,1759552260425,-151.0,0.00024932,9]
[388975111,1759552260435,-160.76519717,0.00024932,9]
[388975112,1759552260444,-151.0,0.00024932,9]
[388975113,1759552260453,-151.0,0.00024932,9]
[388975114,1759552260462,-151.0,0.00024932,9]
[388975115,1759552260472,-151.80431633,0.00024932,9]
[388975116,1759552260481,-151.0,0.00024932,9]
[388975117,1759552260490,-151.0,0.00024932,9]
[388975118,1759552260499,-500.0,0.00024932,9]
[388975119,1759552260508,-151.0,0.00024932,9]
[388975120,1759552260517,-151.0,0.00024932,9]
[388975121,1759552260526,-151.0,0.00024932,9]
[388975122,1759552260535,-151.0,0.00024932,9]
[388975123,1759552260544,-500.0,0.00024932,2]
[388975124,1759552260554,-553.78481927,0.00024973,2]
[388975125,1759552260563,-500.36229035,0.00024973,2]
[388975126,1759552260572,-501.43134864,0.00024973,2]
[388975127,1759552260581,-500.94553527,0.00024973,2]
[388975128,1759552260590,-500.69150073,0.00024973,2]
[388975129,1759552260599,-500.0,0.00024973,2]
[388975130,1759552260608,-200.53054593,0.00024973,2]
[388975131,1759552260617,-500.0,0.00024973,2]
[388975132,1759552260626,-255.53867602,0.00024973,2]
[388975133,1759552260636,-291.18932426,0.00024973,2]
[388975134,1759552260645,-500.0,0.00024973,2]
[388975135,1759552260654,-500.0,0.00024973,2]
[388975136,1759552260663,-500.96882753,0.00024973,2]
[388975137,1759552260672,-500.0,0.00024973,2]
[388975138,1759552260681,-500.0,0.00024973,2]
[388975139,1759552260691,-500.0,0.00024973,2]
[388975140,1759552260700,-500.0,0.00024973,2]
[388975141,1759552260709,-500.84700387,0.00024973,2]
[388975142,1759552260718,-500.0,0.00024973,2]
[388975143,1759552260727,-500.72850474,0.00024973,2]
[388975144,1759552260736,-502.80225857,0.00024973,2]
[388975145,1759552260745,-500.0,0.00024973,2]
[388975146,1759552260754,-500.0,0.00024973,2]
[388975147,1759552260763,-500.0,0.00024973,2]
[388975148,1759552260773,-159.13756808,0.00024973,2]
[388975149,1759552260782,-500.0,0.00024973,2]
[388975150,1759552260791,-500.0,0.00024973,2]
[388975151,1759552260801,-500.0,0.00024973,2]
[388975152,1759552260810,-500.66049701,0.00024973,2]
[388975153,1759552260819,-500.98216754,0.00024973,2]
[388975154,1759552260829,-500.0,0.00024973,2]
[388975155,1759552260838,-500.0,0.00024973,2]
[388975156,1759552260848,-5000.0,0.00025,2]
[388975157,1759552260858,-5000.0,0.00025,2]
[388975158,1759552260867,-1000.0,0.00025,14]
[388975159,1759552260876,-1073.28960523,0.00025,2]
[388975160,1759552260886,-2644.72521644,0.00025,2]
[388975161,1759552260895,-209.54475078,0.00025,2]
[388975162,1759552260904,-361.87184705,0.00025,2]
[388975163,1759552260914,-10364.0,0.00025,2]
[388975164,1759552260923,-2100.10538465,0.00025,2]
[388975165,1759552260932,-101205.56531125,0.00025,2]
[388975166,1759552260942,-600.0,0.00025,2]
[388975167,1759552260951,-3203.71738332,0.00025,2]
[388975168,1759552260960,-365.0,0.00025061,2]
[388975169,1759552260970,-166.0,0.0002509,2]
[388975170,1759552260979,-165.98138,0.00025096,2]
[388975171,1759552260989,-155.1904181,0.00025096,2]
[388975172,1759552260998,-500.0,0.00025105,5]
[388975173,1759552261007,-365.0,0.00025116,7]
[388975174,1759552261016,-1000.0,0.00025121,2]
[388975175,1759552261026,-234.08929083,0.00025128,2]
[388975176,1759552261035,-160.0,0.00025132,2]
[388975177,1759552261044,-160.0,0.00025195,7]
[388975178,1759552261054,-541.67,0.00025205,9]
[388975179,1759552261064,-500.0,0.00025205,9]
[388975180,1759552261073,-500.0,0.00025205,9]
[388975181,1759552261085,-614.2,0.00025205,9]
[388975182,1759552261094,-500.0,0.00025205,9]
[388975183,1759552261103,-500.0,0.00025205,9]
[388975184,1759552261112,-547.2,0.00025205,9]
[388975185,1759552261122,-500.0,0.00025205,9]
[388975186,1759552261131,-500.0,0.00025205,9]
[388975187,1759552261140,-500.0,0.00025205,9]
[388975188,1759552261150,-500.0,0.00025205,9]
[388975189,1759552261159,-500.0,0.00025205,9]
[388975190,1759552261169,-500.0,0.00025205,9]
[388975191,1759552261178,-506.37,0.00025205,9]
[388975192,1759552261187,-1324.56,0.00025205,9]
[388975193,1759552261196,-500.0,0.00025205,9]
[388975194,1759552261205,-500.0,0.00025205,9]
[388975195,1759552261215,-500.0,0.00025205,9]
[388975196,1759552261224,-500.0,0.00025205,9]
[388975197,1759552261234,-500.0,0.00025205,9]
[388975198,1759552261243,-2526.02195221,0.00025205,2]
[388975199,1759552261252,-500.0,0.00025205,9]
[388975200,1759552261262,-500.0,0.00025205,9]
[388975201,1759552261271,-312.17345558,0.00025205,9]
[388975202,1759552261280,-500.0,0.00025205,9]
[388975203,1759552261290,-500.0,0.00025205,9]
[388975204,1759552261299,-500.0,0.00025205,9]
[388975205,1759552261309,-500.0,0.00025205,9]
[388975206,1759552261318,-500.0,0.00025205,9]
[388975207,1759552261328,-500.0,0.00025205,9]
[388975208,1759552261338,-835.57,0.00025205,9]
[388975209,1759552261348,-500.0,0.00025205,7]
[388975210,1759552261358,-500.0,0.00025205,9]
[388975211,1759552261367,-500.0,0.00025205,9]
[388975212,1759552261377,-500.0,0.00025205,9]
[388975213,1759552261387,-500.0,0.00025205,9]
[388975214,1759552261397,-450.22560271,0.00025205,9]
[388975215,1759552261406,-500.0,0.00025205,9]
[388975216,1759552261416,-10958.0,0.00025205,9]
[388975217,1759552261425,-500.0,0.00025205,9]
[388975218,1759552261435,-665.59,0.00025205,9]
[388975219,1759552261445,-500.0,0.00025205,9]
[388975220,1759552261454,-151.0,0.00025205,7]
[388975221,1759552261464,-151.0,0.00025205,7]
[388975222,1759552261473,-151.0,0.00025205,7]
[388975223,1759552261482,-500.0,0.00025205,9]
[388975224,1759552261492,-151.0,0.00025205,7]
[388975225,1759552261502,-151.0,0.00025205,7]
[388975226,1759552261511,-151.0,0.00025205,7]
[388975227,1759552261521,-500.0,0.00025205,9]
[388975228,1759552261530,-784.22,0.00025205,9]
[388975229,1759552261540,-500.0,0.00025205,9]
[388975230,1759552261549,-500.0,0.00025205,9]
[388975231,1759552261559,-500.0,0.00025205,9]
[388975232,1759552261568,-500.0,0.00025205,9]
[388975233,1759552261578,-500.0,0.00025205,9]
[388975234,1759552261587,-429.56149696,0.00025205,9]
[388975235,1759552261779,-500.0,0.00025205,9]
[388975236,1759552261789,-1605.64,0.00025205,9]
[388975237,1759552261799,-1064.74,0.00025205,9]
[388975238,1759552261809,-500.0,0.00025205,9]
[388975239,1759552261820,-500.0,0.00025205,9]
[388975240,1759552261829,-362.32166968,0.00025205,9]
[388975241,1759552261839,-500.0,0.00025205,9]
[388975242,1759552261848,-500.0,0.00025205,9]
[388975243,1759552261858,-6754.91,0.00025205,9]
[388975244,1759552261867,-311.15202665,0.00025205,9]
[388975245,1759552261878,-500.0,0.00025205,9]
[388975246,1759552261887,-500.0,0.00025205,9]
[388975247,1759552261897,-500.0,0.00025205,9]
[388975248,1759552261906,-448.54410431,0.00025205,9]
[388975249,1759552261915,-500.0,0.00025205,9]
[388975250,1759552261924,-500.0,0.00025205,9]
[388975251,1759552261934,-551.35914606,0.00025205,9]
[388975252,1759552261943,-500.0,0.00025205,9]
[388975253,1759552261952,-500.0,0.00025205,9]
[388975254,1759552261961,-500.0,0.00025205,9]
[388975255,1759552261971,-500.0,0.00025205,9]
[388975256,1759552261980,-744.02,0.00025205,9]
[388975257,1759552261989,-500.0,0.00025205,9]
[388975258,1759552261999,-1696.76,0.00025205,9]
[388975259,1759552262009,-500.0,0.00025205,9]
[388975260,1759552262018,-500.0,0.00025205,9]
[388975261,1759552262027,-500.0,0.00025205,9]
[388975262,1759552262037,-500.0,0.00025205,9]
[388975263,1759552262046,-711.43,0.00025205,9]
[388975264,1759552262055,-500.0,0.00025205,9]
[388975265,1759552262064,-500.0,0.00025205,9]
[388975266,1759552262074,-500.0,0.00025205,9]
[388975267,1759552262088,-462.78830198,0.00025205,9]
[388975268,1759552262097,-500.0,0.00025205,9]
[388975269,1759552262106,-500.0,0.00025205,9]
[388975270,1759552262116,-596.87,0.00025205,9]
[388975271,1759552262125,-553.32010482,0.00025205,9]
[388975272,1759552262134,-500.0,0.00025205,9]
[388975273,1759552262144,-851.28,0.00025205,9]
[388975274,1759552262153,-500.0,0.00025205,9]
[388975275,1759552262162,-775.34,0.00025205,9]
[388975276,1759552262171,-500.0,0.00025205,9]
[388975277,1759552262180,-500.0,0.00025205,9]
[388975278,1759552262189,-418.09081363,0.00025205,9]
[388975279,1759552262199,-500.0,0.00025205,9]
[388975280,1759552262208,-399.43529776,0.00025205,9]
[388975281,1759552262217,-500.0,0.00025205,9]
[388975282,1759552262226,-500.0,0.00025205,9]
[388975283,1759552262235,-500.0,0.00025205,9]
[388975284,1759552262244,-500.0,0.00025205,9]
[388975285,1759552262254,-1119.79,0.00025205,9]
[388975286,1759552262263,-426.79960627,0.00025205,9]
[388975287,1759552262273,-500.0,0.00025205,9]
[388975288,1759552262282,-553.09,0.00025205,9]
[388975289,1759552262292,-735.43,0.00025205,9]
[388975290,1759552262301,-500.0,0.00025205,9]
[388975291,1759552262310,-500.0,0.00025205,9]
[388975292,1759552262319,-500.0,0.00025205,9]
[388975293,1759552262329,-500.0,0.00025205,9]
[388975294,1759552262338,-500.0,0.00025205,9]
[388975295,1759552262347,-829.33,0.00025205,9]
[388975296,1759552262356,-780.57,0.00025205,9]
[388975297,1759552262365,-241.57,0.00025205,9]
[388975298,1759552262374,-706.77,0.00025205,9]
[388975299,1759552262384,-307.90295672,0.00025205,9]
[388975300,1759552262393,-175.43988461,0.00025205,9]
[388975301,1759552262403,-500.0,0.00025205,9]
[388975302,1759552262412,-500.0,0.00025205,9]
[388975303,1759552262422,-637.17,0.00025205,9]
[388975304,1759552262431,-500.0,0.00025205,9]
[388975305,1759552262440,-779.32,0.00025205,9]
[388975306,1759552262450,-508.62334344,0.00025205,9]
[388975307,1759552262460,-500.0,0.00025205,9]
[388975308,1759552262469,-500.0,0.00025205,9]
[388975309,1759552262479,-500.0,0.00025205,9]
[388975310,1759552262488,-500.0,0.00025205,9]
[388975311,1759552262497,-1027.39,0.00025205,9]
[388975312,1759552262506,-500.0,0.00025205,9]
[388975313,1759552262516,-760.18,0.00025205,9]
[388975314,1759552262527,-500.0,0.00025205,9]
[388975315,1759552262536,-500.0,0.00025205,9]
[388975316,1759552262545,-500.0,0.00025205,9]
[388975317,1759552262555,-1038.2,0.00025205,9]
[388975318,1759552262565,-500.0,0.00025205,9]
[388975319,1759552262574,-618.42,0.00025205,9]
[388975320,1759552262583,-3037.25,0.00025205,9]
[388975321,1759552262592,-500.0,0.00025205,9]
[388975322,1759552262601,-500.0,0.00025205,9]
[388975323,1759552262611,-500.0,0.00025205,9]
[388975324,1759552262620,-500.0,0.00025205,9]
[388975325,1759552262629,-500.0,0.00025205,9]
[388975326,1759552262638,-500.0,0.00025205,9]
[388975327,1759552262648,-500.0,0.00025205,9]
[388975328,1759552262657,-500.0,0.00025205,9]
[388975329,1759552262666,-500.0,0.00025205,9]
[388975330,1759552262675,-500.0,0.00025205,9]
[388975331,1759552262684,-500.0,0.00025205,9]
[388975332,1759552262693,-500.0,0.00025205,9]
[388975333,1759552262702,-500.0,0.00025205,9]
[388975334,1759552262711,-1680.35,0.00025205,9]
[388975335,1759552262720,-500.0,0.00025205,9]
[388975336,1759552262730,-500.0,0.00025205,9]
[388975337,1759552262740,-500.0,0.00025205,9]
[388975338,1759552262749,-500.0,0.00025205,9]
[388975339,1759552262759,-500.0,0.00025205,9]
[388975340,1759552262769,-500.0,0.00025205,9]
[388975341,1759552262778,-500.0,0.00025205,9]
[388975342,1759552262788,-500.0,0.00025205,9]
[388975343,1759552262798,-500.0,0.00025205,9]
[388975344,1759552262807,-500.0,0.00025205,9]
[388975345,1759552262816,-500.0,0.00025205,9]
[388975346,1759552262826,-500.0,0.00025205,9]
[388975347,1759552262835,-500.0,0.00025205,9]
[388975348,1759552262844,-500.0,0.00025205,9]
[388975349,1759552262853,-500.0,0.00025205,9]
[388975350,1759552262863,-599.93,0.00025205,9]
[388975351,1759552262872,-500.0,0.00025205,9]
[388975352,1759552262881,-629.83,0.00025205,9]
[388975353,1759552262891,-500.0,0.00025205,9]
[388975354,1759552262900,-500.0,0.00025205,9]
[388975355,1759552262909,-543.44,0.00025205,9]
[388975356,1759552262919,-500.0,0.00025205,9]
[388975357,1759552262928,-500.0,0.00025205,9]
[388975358,1759552262938,-431.10111845,0.00025205,9]
[388975359,1759552262947,-214.30396273,0.00025205,9]
[388975360,1759552262956,-735.17,0.00025205,9]
[388975361,1759552262965,-1524.89,0.00025205,9]
[388975362,1759552262975,-500.0,0.00025205,9]
[388975363,1759552262984,-500.0,0.00025205,9]
[388975364,1759552262993,-500.0,0.00025205,9]
[388975365,1759552263002,-443.76001596,0.00025205,9]
[388975366,1759552263012,-500.0,0.00025205,9]
[388975367,1759552263021,-500.0,0.00025205,9]
[388975368,1759552263030,-500.0,0.00025205,9]
[388975369,1759552263039,-452.22086464,0.00025205,9]
[388975370,1759552263048,-946.45,0.00025205,9]
[388975371,1759552263057,-357.11002894,0.00025205,9]
[388975372,1759552263066,-534.54,0.00025205,9]
[388975373,1759552263076,-1422.55,0.00025205,9]
[388975374,1759552263086,-157.38179223,0.00025205,9]
[388975375,1759552263095,-500.0,0.00025205,9]
[388975376,1759552263104,-500.0,0.00025205,9]
[388975377,1759552263113,-500.0,0.00025205,9]
[388975378,1759552263122,-500.0,0.00025205,9]
[388975379,1759552263132,-500.0,0.00025205,9]
[388975380,1759552263141,-500.0,0.00025205,9]
[388975381,1759552263150,-500.0,0.00025205,9]
[388975382,1759552263159,-641.68,0.00025205,9]
[388975383,1759552263168,-500.0,0.00025205,9]
[388975384,1759552263177,-500.0,0.00025205,9]
[388975385,1759552263187,-4209.87,0.00025205,9]
[388975386,1759552263195,-500.0,0.00025205,9]
[388975387,1759552263205,-500.0,0.00025205,2]
[388975388,1759552263214,-657.32,0.00025205,9]
[388975389,1759552263223,-500.0,0.00025205,9]
[388975390,1759552263232,-500.0,0.00025205,9]
[388975391,1759552263242,-532.62,0.00025205,9]
[388975392,1759552263251,-500.0,0.00025205,9]
[388975393,1759552263260,-500.0,0.00025205,9]
[388975394,1759552263270,-1204.29,0.00025205,9]
[388975395,1759552263280,-500.0,0.00025205,9]
[388975396,1759552263289,-500.0,0.00025205,9]
[388975397,1759552263299,-500.0,0.00025205,9]
[388975398,1759552263308,-500.0,0.00025205,9]
[388975399,1759552263317,-500.0,0.00025205,9]
[388975400,1759552263326,-500.0,0.00025205,9]
[388975401,1759552263336,-510.59,0.00025205,9]
[388975402,1759552263345,-500.0,0.00025205,9]
[388975403,1759552263355,-500.0,0.00025205,9]
[388975404,1759552263364,-500.0,0.00025205,9]
[388975405,1759552263373,-500.0,0.00025205,9]
[388975406,1759552263382,-500.0,0.00025205,9]
[388975407,1759552263391,-677.47,0.00025205,9]
[388975408,1759552263401,-611.77,0.00025205,9]
[388975409,1759552263410,-500.0,0.00025205,9]
[388975410,1759552263419,-500.0,0.00025205,9]
[388975411,1759552263428,-500.0,0.00025205,9]
[388975412,1759552263437,-500.0,0.00025205,9]
[388975413,1759552263447,-895.86,0.00025205,9]
[388975414,1759552263456,-668.32,0.00025205,9]
[388975415,1759552263466,-500.0,0.00025205,9]
[388975416,1759552263476,-518.37,0.00025205,9]
[388975417,1759552263485,-500.0,0.00025205,9]
[388975418,1759552263495,-500.0,0.00025205,9]
[388975419,1759552263505,-296.40889077,0.00025205,9]
[388975420,1759552263515,-1526.72,0.00025205,9]
[388975421,1759552263524,-1906.99,0.00025205,9]
[388975422,1759552263534,-790.39,0.00025205,9]
[388975423,1759552263543,-1000.0,0.00025205,9]
[388975424,1759552263552,-500.0,0.00025205,9]
[388975425,1759552263561,-514.89,0.00025205,9]
[388975426,1759552263571,-500.0,0.00025205,9]
[388975427,1759552263580,-500.0,0.00025205,9]
[388975428,1759552263589,-500.0,0.00025205,9]
[388975429,1759552263598,-583.58,0.00025205,9]
[388975430,1759552263607,-500.0,0.00025205,9]
[388975431,1759552263616,-500.0,0.00025205,9]